fUSD/lending_fUSD_20240419
["ID","MTS","AMOUNT","RATE_DAILY","PERIOD"]
[322905784,1713491693968,200.0,0.00015375,2]
[322905785,1713491698606,152.0,0.00024332,30]
[322905786,1713491698856,163.0,0.00015367,2]
[322905787,1713491766553,500.0,0.00015374,2]
[322905788,1713491811306,173.07,0.00015374,2]
[322905789,1713491829745,157.22,0.00015483,2]
[322905790,1713491863216,348.22,0.00015288,2]
[322905791,1713491888010,500.0,0.00015301,2]
[322905792,1713491936118,328.0,0.00015287,2]
[322905793,1713491967382,707.7,0.00015283,2]
[322905794,1713492021562,618.42,0.00013387,2]
[322905795,1713492031938,150.0,0.00015296,2]
[322905796,1713492034616,469.75,0.00015296,2]
[322905797,1713492051380,200.0,0.0001531,2]
[322905798,1713492117908,1117.45,0.00015337,2]
[322905799,1713492137205,1240.0,0.00021,30]
[322905800,1713492155778,152.13,0.0001611,15]
[322905801,1713492162012,250.0,0.00015333,2]
[322905802,1713492178034,1117.0,0.000224,30]
[322905803,1713492216454,1117.0,0.000224,30]
[322905804,1713492235158,1000.0,0.0002433,30]
[322905805,1713492301328,7781.0,0.0001,14]
[322905806,1713492329136,157.22,0.00015385,2]
[322905807,1713492418272,2550.0,0.00028208,120]
[322905808,1713492421480,737.6,0.00015295,2]
[322905809,1713492452794,353.85,0.00015304,2]
[322905813,1713492542107,158.69930925,0.00015425,2]
[322905814,1713492544295,200.0,0.000153,2]
[322905818,1713492570821,587.49,0.00013324,2]
[322905843,1713492631564,-1131.03576158,0.00015518,2]
[322905844,1713492631573,-1052.70383842,0.00015518,2]
[322905845,1713492631612,-2722.19108287,0.00015518,2]
[322905846,1713492631625,-155.0,0.00015519,2]
[322905847,1713492631635,-7242.29191281,0.0001552,2]
[322905848,1713492631665,-2860.05293991,0.0001552,2]
[322905849,1713492631700,-14097.59131757,0.0001552,2]
[322905888,1713492637889,-1739.42027029,0.0001552,2]
[322905889,1713492637900,-3240.20759712,0.0001552,2]
[322905890,1713492637964,-370550.49986852,0.0001552,2]
[322905891,1713492637976,-6511.79685628,0.00015521,2]
[322905892,1713492637985,-382.79614058,0.00015522,2]
[322905893,1713492637994,-1117.31758709,0.00015523,2]
[322905894,1713492638004,-150.0,0.00015525,2]
[322905895,1713492638014,-62171.10339945,0.00015526,4]
[322905896,1713492638023,-9788.67311809,0.00015527,2]
[322905897,1713492638033,-10089.02728076,0.00015527,2]
[322905898,1713492638042,-157.22,0.00015545,2]
[322905899,1713492638051,-158.69930918,0.00015555,2]
[322905900,1713492638061,-587.49,0.00015588,2]
[322905901,1713492638070,-158.69930918,0.00015686,2]
[322905902,1713492638080,-157.22,0.00015706,2]
[322905903,1713492638089,-1782.0,0.000158,2]
[322905904,1713492638099,-158.69930918,0.00015816,2]
[322905905,1713492638108,-157.22,0.00015866,2]
[322905906,1713492638118,-29999.99,0.00015866,2]
[322905907,1713492638127,-279.36,0.00015866,2]
[322905908,1713492638143,-617.68,0.00015866,2]
[322905909,1713492638153,-170.73,0.0001587,2]
[322905910,1713492638162,-158.69930918,0.00015946,2]
[322905911,1713492638172,-1250.0,0.00016,2]
[322905912,1713492638181,-155.0,0.00016,2]
[322905913,1713492638190,-157.22,0.00016026,2]
[322905914,1713492638199,-158.69930918,0.00016076,2]
[322905915,1713492638209,-424.56431633,0.00016177,2]
[322905916,1713492638219,-157.22,0.00016187,2]
[322905917,1713492638229,-158.69930918,0.00016207,2]
[322905918,1713492638239,-12602.86369972,0.00016256,2]
[322905919,1713492638251,-10000.0,0.00016257,2]
[322905920,1713492638260,-1539.81,0.00016266,2]
[322905921,1713492638270,-499.99,0.00016266,2]
[322905922,1713492638280,-6167.826,0.00016266,2]
[322905923,1713492638290,-154.58659,0.0001627,2]
[322905924,1713492638300,-500.0,0.00016306,2]
[322905925,1713492638310,-200.0,0.00016307,2]
[322905926,1713492638319,-200.0,0.00016307,2]
[322905927,1713492638329,-500.0,0.00016307,2]
[322905928,1713492638339,-200.0,0.00016307,2]
[322905929,1713492638348,-7248.1728,0.00016329,2]
[322905930,1713492638357,-1380.4891,0.00016337,2]
[322905931,1713492638366,-17793.1241,0.00016337,2]
[322905932,1713492638375,-322.9912,0.00016337,2]
[322905933,1713492638390,-158.69930918,0.00016337,2]
[322905934,1713492638399,-172.32275252,0.00016338,2]
[322905935,1713492638408,-2731.91452586,0.00016338,2]
[322905936,1713492638417,-1071.22362175,0.00016338,2]
[322905937,1713492638426,-3696.751,0.00016368,2]
[322905938,1713492638435,-3614.494,0.00016368,2]
[322905939,1713492638444,-328.28907379,0.0001639,2]
[322905940,1713492638453,-1273.0,0.000164,2]
[322905941,1713492638462,-5000.0,0.000164,2]
[322905942,1713492638471,-4999.99,0.000164,2]
[322905943,1713492638481,-5000.0,0.000164,2]
[322905944,1713492638490,-4999.99,0.000164,2]
[322905945,1713492638499,-172.32275248,0.00016406,2]
[322905946,1713492638508,-5000.0,0.0001641,2]
[322905947,1713492638517,-5000.0,0.0001641,2]
[322905948,1713492638526,-161.35,0.00016419,2]
[322905949,1713492638536,-5000.0,0.0001642,2]
[322905950,1713492638545,-1164.53070172,0.00016428,5]
[322905951,1713492638554,-157.041911,0.00016428,2]
[322905952,1713492638563,-157.041911,0.00016428,2]
[322905953,1713492638573,-173.041911,0.00016428,2]
[322905954,1713492638582,-173.041911,0.00016428,2]
[322905955,1713492638591,-173.041911,0.00016428,2]
[322905956,1713492638600,-1035.9691863,0.00016428,2]
[322905957,1713492638609,-328.28907379,0.00016428,2]
[322905958,1713492638618,-328.28907379,0.00016428,2]
[322905959,1713492638627,-5451.0282001,0.00016429,2]
[322905960,1713492638640,-22594.9682943,0.00016429,2]
[322905961,1713492638650,-13900.2318752,0.00016429,2]
[322905962,1713492638659,-2934.12,0.0001643,2]
[322905963,1713492638669,-155.30881091,0.00016435,2]
[322905964,1713492638679,-181.60239483,0.00016435,2]
[322905965,1713492638689,-2289.55304568,0.00016435,2]
[322905966,1713492638698,-155.38695018,0.00016435,2]
[322905967,1713492638708,-525.02271148,0.00016435,2]
[322905968,1713492638717,-262.75491139,0.00016435,2]
[322905969,1713492638727,-618.74747092,0.00016435,2]
[322905970,1713492638737,-378.94968735,0.00016435,2]
[322905971,1713492638746,-555.93800378,0.00016435,2]
[322905972,1713492638755,-679.33917279,0.00016435,2]
[322905973,1713492638765,-540.62931802,0.00016435,2]
[322905974,1713492638774,-330.50722519,0.00016435,2]
[322905975,1713492638783,-521.42925863,0.00016435,2]
[322905976,1713492638793,-4332.82844793,0.00016435,2]
[322905977,1713492638802,-510.28874364,0.00016435,2]
[322905978,1713492638811,-155.0,0.00016435,2]
[322905979,1713492638820,-1302.07511691,0.00016435,2]
[322905980,1713492638829,-2892.02850822,0.00016435,2]
[322905981,1713492638838,-310.0910447,0.00016435,2]
[322905982,1713492638848,-157.8825257,0.00016435,2]
[322905983,1713492638857,-265.49296366,0.00016435,2]
[322905984,1713492638867,-1232.3582921,0.00016435,2]
[322905985,1713492638876,-155.63247054,0.00016435,2]
[322905986,1713492638888,-155.37742637,0.00016435,2]
[322905987,1713492638898,-234.76780342,0.00016435,2]
[322905988,1713492638907,-200.65715321,0.00016436,2]
[322905989,1713492638916,-4147.78500318,0.00016436,2]
[322905990,1713492638926,-164.90576658,0.00016437,2]
[322905991,1713492638936,-201.15025214,0.00016437,2]
[322905992,1713492638946,-256350.98375178,0.00016437,2]
[322905993,1713492638955,-1927.63500074,0.00016437,2]
[322905994,1713492638965,-252.97543323,0.00016437,2]
[322905995,1713492638974,-1087.0,0.00016438,2]
[322905996,1713492638984,-500.0,0.00016438,2]
[322905997,1713492638993,-500.0,0.00016438,2]
[322905998,1713492639002,-388.89138904,0.00016438,2]
[322905999,1713492639013,-500.0,0.00016438,2]
[322906000,1713492639022,-500.0,0.00016438,2]
[322906001,1713492639032,-500.0,0.00016438,2]
[322906002,1713492639041,-500.0,0.00016438,2]
[322906003,1713492639051,-500.0,0.00016438,2]
[322906004,1713492639060,-500.0,0.00016438,2]
[322906005,1713492639070,-500.0,0.00016438,2]
[322906006,1713492639079,-302.46482719,0.00016438,2]
[322906007,1713492639089,-178.09020212,0.00016438,2]
[322906008,1713492639100,-500.64802181,0.00016438,2]
[322906009,1713492639113,-500.0,0.00016438,2]
[322906010,1713492639123,-500.0,0.00016438,2]
[322906011,1713492639139,-500.0,0.00016438,2]
[322906012,1713492639150,-500.0,0.00016438,2]
[322906013,1713492639161,-500.0,0.00016438,2]
[322906014,1713492639171,-500.0,0.00016438,2]
[322906015,1713492639181,-500.0,0.00016438,2]
[322906016,1713492639191,-500.0,0.00016438,2]
[322906017,1713492639201,-500.0,0.00016438,2]
[322906018,1713492639211,-500.0,0.00016438,2]
[322906020,1713492639220,-501.16016688,0.00016438,2]
[322906021,1713492639230,-500.0,0.00016438,2]
[322906022,1713492639239,-500.0,0.00016438,2]
[322906023,1713492639249,-213.63281724,0.00016438,2]
[322906024,1713492639262,-500.0,0.00016438,2]
[322906025,1713492639271,-500.0,0.00016438,2]
[322906026,1713492639281,-501.35309387,0.00016438,2]
[322906027,1713492639290,-500.0,0.00016438,2]
[322906028,1713492639300,-500.0,0.00016438,2]
[322906029,1713492639309,-500.0,0.00016438,2]
[322906030,1713492639319,-500.0,0.00016438,2]
[322906031,1713492639328,-500.0,0.00016438,2]
[322906032,1713492639338,-550.46223531,0.00016438,2]
[322906033,1713492639348,-500.0,0.00016438,2]
[322906034,1713492639357,-164.14706148,0.00016438,2]
[322906035,1713492639367,-500.0,0.00016438,2]
[322906036,1713492639376,-500.0,0.00016438,2]
[322906037,1713492639389,-500.0,0.00016438,2]
[322906038,1713492639398,-500.0,0.00016438,2]
[322906039,1713492639407,-500.0,0.00016438,2]
[322906040,1713492639416,-500.0,0.00016438,2]
[322906041,1713492639425,-500.0,0.00016438,2]
[322906042,1713492639434,-500.0,0.00016438,2]
[322906043,1713492639443,-500.0,0.00016438,2]
[322906044,1713492639453,-1203.78,0.00016438,2]
[322906045,1713492639462,-500.0,0.00016438,2]
[322906046,1713492639471,-500.0,0.00016438,2]
[322906047,1713492639480,-500.0,0.00016438,2]
[322906048,1713492639490,-1391.8,0.00016438,2]
[322906049,1713492639499,-729.66,0.00016438,2]
[322906050,1713492639508,-500.15831658,0.00016438,2]
[322906051,1713492639518,-500.0,0.00016438,2]
[322906052,1713492639527,-500.0,0.00016438,2]
[322906053,1713492639537,-500.0,0.00016438,2]
[322906054,1713492639546,-500.0,0.00016438,2]
[322906055,1713492639555,-2206.06,0.00016438,2]
[322906056,1713492639565,-500.0,0.00016438,2]
[322906057,1713492639574,-1535.91,0.00016438,2]
[322906058,1713492639583,-500.0,0.00016438,2]
[322906059,1713492639592,-500.11112978,0.00016438,2]
[322906060,1713492639601,-500.0,0.00016438,2]
[322906061,1713492639611,-504.45031484,0.00016438,2]
[322906062,1713492639622,-500.06039342,0.00016438,2]
[322906063,1713492639631,-500.0,0.00016438,2]
[322906064,1713492639644,-973.02,0.00016438,2]
[322906065,1713492639653,-513.08,0.00016438,2]
[322906066,1713492639663,-500.0,0.00016438,2]
[322906067,1713492639673,-500.0,0.00016438,2]
[322906068,1713492639682,-500.0,0.00016438,2]
[322906069,1713492639692,-500.0,0.00016438,2]
[322906070,1713492639703,-2952.56,0.00016438,2]
[322906071,1713492639713,-500.0,0.00016438,2]
[322906072,1713492639724,-500.0,0.00016438,2]
[322906073,1713492639734,-1078.06,0.00016438,2]
[322906074,1713492639744,-500.0,0.00016438,2]
[322906075,1713492639755,-500.0,0.00016438,2]
[322906076,1713492639764,-500.0,0.00016438,2]
[322906077,1713492639774,-500.0,0.00016438,2]
[322906078,1713492639783,-500.0,0.00016438,2]
[322906079,1713492639792,-537.38,0.00016438,2]
[322906080,1713492639801,-831.64,0.00016438,2]
[322906081,1713492639810,-500.0,0.00016438,2]
[322906082,1713492639819,-1608.9,0.00016438,2]
[322906083,1713492639828,-1608.9,0.00016438,2]
[322906084,1713492639837,-1608.9,0.00016438,2]
[322906085,1713492639846,-1608.9,0.00016438,2]
[322906086,1713492639856,-1608.9,0.00016438,2]
[322906087,1713492639865,-1608.9,0.00016438,2]
[322906088,1713492639874,-1608.9,0.00016438,2]
[322906089,1713492639886,-1608.9,0.00016438,2]
[322906090,1713492639895,-641.13,0.00016438,2]
[322906091,1713492639903,-1608.9,0.00016438,2]
[322906092,1713492639912,-1608.9,0.00016438,2]
[322906093,1713492639921,-1608.9,0.00016438,2]
[322906094,1713492639930,-500.0,0.00016438,2]
[322906095,1713492639939,-1608.9,0.00016438,2]
[322906096,1713492639948,-1608.9,0.00016438,2]
[322906097,1713492639958,-1608.9,0.00016438,2]
[322906098,1713492639968,-1608.9,0.00016438,2]
[322906099,1713492639977,-1608.9,0.00016438,2]
[322906100,1713492639987,-1608.9,0.00016438,2]
[322906101,1713492639996,-1608.9,0.00016438,2]
[322906102,1713492640006,-1608.9,0.00016438,2]
[322906103,1713492640015,-1608.9,0.00016438,2]
[322906104,1713492640025,-1608.9,0.00016438,2]
[322906105,1713492640034,-1608.9,0.00016438,2]
[322906106,1713492640043,-1608.9,0.00016438,2]
[322906107,1713492640053,-1608.99591401,0.00016438,2]
[322906108,1713492640063,-500.0,0.00016438,2]
[322906109,1713492640072,-500.0,0.00016438,2]
[322906110,1713492640081,-500.0,0.00016438,2]
[322906111,1713492640091,-500.0,0.00016438,2]
[322906112,1713492640100,-663.42,0.00016438,2]
[322906113,1713492640109,-2593.0,0.00016438,2]
[322906114,1713492640119,-1159.09,0.00016438,2]
[322906115,1713492640128,-500.0,0.00016438,2]
[322906116,1713492640143,-500.0,0.00016438,2]
[322906117,1713492640152,-500.0,0.00016438,2]
[322906118,1713492640161,-1020.26,0.00016438,2]
[322906119,1713492640171,-500.0,0.00016438,2]
[322906120,1713492640180,-738.99,0.00016438,2]
[322906121,1713492640190,-2412.86,0.00016438,2]
[322906122,1713492640199,-500.07485068,0.00016438,2]
[322906123,1713492640210,-500.0,0.00016438,2]
[322906124,1713492640220,-500.53873691,0.00016438,2]
[322906125,1713492640230,-1083.2,0.00016438,2]
[322906126,1713492640241,-500.0,0.00016438,2]
[322906127,1713492640252,-1781.96,0.00016438,2]
[322906128,1713492640266,-500.0,0.00016438,2]
[322906129,1713492640275,-1142.9,0.00016438,2]
[322906130,1713492640288,-1951.55,0.00016438,2]
[322906131,1713492640299,-500.0,0.00016438,2]
[322906132,1713492640309,-645.39,0.00016438,2]
[322906133,1713492640320,-539.18,0.00016438,2]
[322906134,1713492640330,-500.0,0.00016438,2]
[322906135,1713492640340,-1265.46,0.00016438,2]
[322906136,1713492640349,-500.0,0.00016438,2]
[322906137,1713492640358,-803.62,0.00016438,2]
[322906138,1713492640368,-964.11,0.00016438,2]
[322906139,1713492640378,-629.02976856,0.00016438,2]
[322906140,1713492640391,-500.0,0.00016438,2]
[322906141,1713492640400,-500.0,0.00016438,2]
[322906142,1713492640410,-500.0,0.00016438,2]
[322906143,1713492640419,-500.0,0.00016438,2]
[322906144,1713492640428,-694.32,0.00016438,2]
[322906145,1713492640437,-2893.57,0.00016438,2]
[322906146,1713492640446,-1561.71,0.00016438,2]
[322906147,1713492640456,-1612.29,0.00016438,2]
[322906148,1713492640465,-854.94,0.00016438,2]
[322906149,1713492640474,-500.0,0.00016438,2]
[322906150,1713492640483,-1093.11,0.00016438,2]
[322906151,1713492640493,-1239.08,0.00016438,2]
[322906152,1713492640502,-500.0,0.00016438,2]
[322906153,1713492640511,-1693.67,0.00016438,2]
[322906154,1713492640520,-500.0,0.00016438,2]
[322906155,1713492640531,-500.0,0.00016438,2]
[322906156,1713492640541,-933.4,0.00016438,2]
[322906157,1713492640550,-500.0,0.00016438,2]
[322906158,1713492640560,-500.0,0.00016438,2]
[322906159,1713492640570,-952.23,0.00016438,2]
[322906160,1713492640579,-2207.32,0.00016438,2]
[322906161,1713492640588,-500.0,0.00016438,2]
[322906162,1713492640597,-500.0,0.00016438,2]
[322906163,1713492640606,-500.0,0.00016438,2]
[322906164,1713492640615,-500.0,0.00016438,2]
[322906165,1713492640623,-500.0,0.00016438,2]
[322906166,1713492640635,-500.0,0.00016438,2]
[322906167,1713492640644,-500.0,0.00016438,2]
[322906168,1713492640653,-500.0,0.00016438,2]
[322906169,1713492640662,-500.0,0.00016438,2]
[322906170,1713492640670,-500.0,0.00016438,2]
[322906171,1713492640679,-500.0,0.00016438,2]
[322906172,1713492640688,-500.0,0.00016438,2]
[322906173,1713492640697,-500.0,0.00016438,2]
[322906174,1713492640706,-2319.14,0.00016438,2]
[322906175,1713492640715,-509.95,0.00016438,2]
[322906176,1713492640724,-500.0,0.00016438,2]
[322906177,1713492640733,-500.0,0.00016438,2]
[322906178,1713492640741,-3118.66,0.00016438,2]
[322906179,1713492640750,-500.0,0.00016438,2]
[322906180,1713492640759,-500.0,0.00016438,2]
[322906181,1713492640768,-1262.95,0.00016438,2]
[322906182,1713492640778,-500.0,0.00016438,2]
[322906183,1713492640786,-500.0,0.00016438,2]
[322906184,1713492640795,-228.69591874,0.00016438,2]
[322906185,1713492640805,-2502.71,0.00016438,2]
[322906186,1713492640814,-1124.98,0.00016438,2]
[322906187,1713492640823,-1458.7,0.00016438,2]
[322906188,1713492640833,-500.0,0.00016438,2]
[322906189,1713492640842,-500.0,0.00016438,2]
[322906190,1713492640851,-500.0,0.00016438,2]
[322906191,1713492640860,-1013.28,0.00016438,2]
[322906192,1713492640869,-1637.34,0.00016438,2]
[322906193,1713492640878,-3213.87,0.00016438,2]
[322906194,1713492640893,-1145.41,0.00016438,2]
[322906195,1713492640902,-500.0,0.00016438,2]
[322906196,1713492640911,-1012.42,0.00016438,2]
[322906197,1713492640919,-1939.11,0.00016438,2]
[322906198,1713492640928,-500.0,0.00016438,2]
[322906199,1713492640937,-522.53,0.00016438,2]
[322906200,1713492640946,-500.0,0.00016438,2]
[322906201,1713492640955,-500.0,0.00016438,2]
[322906202,1713492640964,-889.86,0.00016438,2]
[322906203,1713492640973,-500.0,0.00016438,2]
[322906204,1713492640982,-500.0,0.00016438,2]
[322906205,1713492640991,-2006.39,0.00016438,2]
[322906206,1713492641000,-500.0,0.00016438,2]
[322906207,1713492641009,-1138.84,0.00016438,2]
[322906208,1713492641018,-500.0,0.00016438,2]
[322906209,1713492641027,-780.24,0.00016438,2]
[322906210,1713492641037,-777.25,0.00016438,2]
[322906211,1713492641338,-766.06,0.00016438,2]
[322906212,1713492641348,-593.61,0.00016438,2]
[322906213,1713492641358,-500.0,0.00016438,2]
[322906214,1713492641367,-500.0,0.00016438,2]
[322906215,1713492641377,-500.0,0.00016438,2]
[322906216,1713492641391,-500.0,0.00016438,2]
[322906217,1713492641401,-705.74,0.00016438,2]
[322906218,1713492641410,-500.0,0.00016438,2]
[322906219,1713492641419,-2132.52,0.00016438,2]
[322906220,1713492641428,-500.0,0.00016438,2]
[322906221,1713492641438,-1169.53,0.00016438,2]
[322906222,1713492641448,-2050.24,0.00016438,2]
[322906223,1713492641458,-500.0,0.00016438,2]
[322906224,1713492641467,-500.0,0.00016438,2]
[322906225,1713492641476,-606.8,0.00016438,2]
[322906226,1713492641485,-500.0,0.00016438,2]
[322906227,1713492641495,-500.0,0.00016438,2]
[322906228,1713492641504,-635.70838526,0.00016438,2]
[322906229,1713492641513,-2298.09,0.00016438,2]
[322906230,1713492641522,-500.0,0.00016438,2]
[322906231,1713492641532,-500.0,0.00016438,2]
[322906232,1713492641542,-500.0,0.00016438,2]
[322906233,1713492641551,-500.0,0.00016438,2]
[322906234,1713492641561,-500.0,0.00016438,2]
[322906235,1713492641570,-2844.3,0.00016438,2]
[322906236,1713492641579,-500.0,0.00016438,2]
[322906237,1713492641588,-651.48,0.00016438,2]
[322906238,1713492641597,-792.27,0.00016438,2]
[322906239,1713492641606,-500.0,0.00016438,2]
[322906240,1713492641615,-611.57,0.00016438,2]
[322906241,1713492641624,-500.0,0.00016438,2]
[322906242,1713492641636,-900.01,0.00016438,2]
[322906243,1713492641645,-507.45116883,0.00016438,2]
[322906244,1713492641655,-500.0,0.00016438,2]
[322906245,1713492641664,-500.0,0.00016438,2]
[322906246,1713492641673,-610.97,0.00016438,2]
[322906247,1713492641682,-500.0,0.00016438,2]
[322906248,1713492641692,-517.84,0.00016438,2]
[322906249,1713492641701,-1897.41,0.00016438,2]
[322906250,1713492641710,-544.99,0.00016438,2]
[322906251,1713492641719,-500.0,0.00016438,2]
[322906252,1713492641728,-500.0,0.00016438,2]
[322906253,1713492641738,-757.45,0.00016438,2]
[322906254,1713492641747,-500.0,0.00016438,2]
[322906255,1713492641756,-2961.17,0.00016438,2]
[322906256,1713492641765,-1703.77,0.00016438,2]
[322906257,1713492641774,-218.47615992,0.00016438,2]
[322906258,1713492641784,-500.0,0.00016438,2]
[322906259,1713492641793,-500.0,0.00016438,2]
[322906260,1713492641802,-500.0,0.00016438,2]
[322906261,1713492641811,-500.0,0.00016438,2]
[322906262,1713492641820,-500.0,0.00016438,2]
[322906263,1713492641829,-410.78854867,0.00016438,2]
[322906264,1713492641838,-500.0,0.00016438,2]
[322906265,1713492641847,-1817.42,0.00016438,2]
[322906266,1713492641856,-1456.05,0.00016438,2]
[322906267,1713492641865,-1736.73,0.00016438,2]
[322906268,1713492641874,-500.0,0.00016438,2]
[322906269,1713492641885,-1608.04,0.00016438,2]
[322906270,1713492641894,-500.0,0.00016438,2]
[322906271,1713492641903,-1185.11,0.00016438,2]
[322906272,1713492641912,-1675.63,0.00016438,2]
[322906273,1713492641921,-500.0,0.00016438,2]
[322906274,1713492641930,-500.0,0.00016438,2]
[322906275,1713492641939,-500.0,0.00016438,2]
[322906276,1713492641948,-500.0,0.00016438,2]
[322906277,1713492641957,-500.0,0.00016438,2]
[322906278,1713492641966,-585.03,0.00016438,2]
[322906279,1713492641975,-1451.95,0.00016438,2]
[322906280,1713492641985,-1193.51,0.00016438,2]
[322906281,1713492641994,-500.0,0.00016438,2]
[322906282,1713492642003,-651.13,0.00016438,2]
[322906283,1713492642012,-500.0,0.00016438,2]
[322906284,1713492642021,-1822.29,0.00016438,2]
[322906285,1713492642031,-2815.44,0.00016438,2]
[322906286,1713492642040,-504.43498473,0.00016438,2]
[322906287,1713492642050,-500.0,0.00016438,2]
[322906288,1713492642059,-2363.64,0.00016438,2]
[322906289,1713492642068,-1944.32,0.00016438,2]
[322906290,1713492642078,-830.4,0.00016438,2]
[322906291,1713492642088,-1877.1,0.00016438,2]
[322906292,1713492642097,-695.1,0.00016438,2]
[322906294,1713492642106,-226.47577644,0.00016438,2]
[322906295,1713492642115,-1529.85,0.00016438,2]
[322906296,1713492642125,-500.0,0.00016438,2]
[322906297,1713492642141,-500.0,0.00016438,2]
[322906298,1713492642150,-500.0,0.00016438,2]
[322906299,1713492642160,-500.0,0.00016438,2]
[322906300,1713492642170,-890.32,0.00016438,2]
[322906301,1713492642179,-873.01,0.00016438,2]
[322906302,1713492642189,-500.0,0.00016438,2]
[322906303,1713492642199,-500.0,0.00016438,2]
[322906304,1713492642208,-500.0,0.00016438,2]
[322906305,1713492642218,-500.0,0.00016438,2]
[322906306,1713492642227,-912.34,0.00016438,2]
[322906307,1713492642237,-500.0,0.00016438,2]
[322906308,1713492642252,-500.0,0.00016438,2]
[322906309,1713492642262,-2169.51,0.00016438,2]
[322906310,1713492642272,-500.0,0.00016438,2]
[322906311,1713492642282,-510.69980397,0.00016438,2]
[322906312,1713492642291,-1280.37,0.00016438,2]
[322906314,1713492642300,-1496.3,0.00016438,2]
[322906315,1713492642310,-517.47444301,0.00016438,2]
[322906316,1713492642319,-500.0,0.00016438,2]
[322906317,1713492642328,-500.0,0.00016438,2]
[322906318,1713492642338,-953.29,0.00016438,2]
[322906322,1713492642347,-500.0,0.00016438,2]
[322906326,1713492642357,-1931.59,0.00016438,2]
[322906329,1713492642366,-500.0,0.00016438,2]
[322906332,1713492642376,-500.9837414,0.00016438,2]
[322906335,1713492642389,-500.0,0.00016438,2]
[322906338,1713492642398,-500.0,0.00016438,2]
[322906342,1713492642407,-500.0,0.00016438,2]
[322906346,1713492642416,-500.0,0.00016438,2]
[322906349,1713492642426,-1499.94,0.00016438,2]
[322906352,1713492642435,-1123.19,0.00016438,2]
[322906355,1713492642444,-517.44557566,0.00016438,2]
[322906357,1713492642453,-650.96,0.00016438,2]
[322906358,1713492642462,-500.0,0.00016438,2]
[322906360,1713492642471,-1464.11,0.00016438,2]
[322906361,1713492642481,-500.0,0.00016438,2]
[322906363,1713492642490,-500.0,0.00016438,2]
[322906365,1713492642499,-1400.22,0.00016438,2]
[322906367,1713492642508,-500.0,0.00016438,2]
[322906369,1713492642517,-500.0,0.00016438,2]
[322906371,1713492642527,-3234.97,0.00016438,2]
[322906373,1713492642536,-607.51,0.00016438,2]
[322906375,1713492642546,-1133.24,0.00016438,2]
[322906377,1713492642555,-862.51,0.00016438,2]
[322906379,1713492642564,-500.0,0.00016438,2]
[322906381,1713492642574,-896.73,0.00016438,2]
[322906382,1713492642583,-760.34,0.00016438,2]
[322906383,1713492642593,-1061.99,0.00016438,2]
[322906384,1713492642602,-500.0,0.00016438,2]
[322906385,1713492642611,-500.0,0.00016438,2]
[322906386,1713492642621,-500.0,0.00016438,2]
[322906387,1713492642630,-2282.42,0.00016438,2]
[322906388,1713492642644,-1656.92,0.00016438,2]
[322906389,1713492642654,-500.0,0.00016438,2]
[322906390,1713492642663,-500.0,0.00016438,2]
[322906391,1713492642672,-500.0,0.00016438,2]
[322906392,1713492642681,-151.0,0.00016438,2]